Cogmind - Beta 14 @@@ ROGUE MODE // 2024.10.06 @ 19:40:58 Player: LegionOfLizards Result: Destroyed by H-66 Slayer with Gauss Rifle Performance ------------- Evolutions (4) 2000 Regions Visited (6) 1200 Robots Destroyed (205) 1025 Value Destroyed (6030) 6030 Prototype IDs (3) 60 Alien Tech Used (0) 0 Bonus (1220) 1220 TOTAL SCORE: 11535 Bonus ------- High Alert Combat Kills 1052 Follower Combat Kills 168 Cogmind --------- Core Integrity 0/850 Matter 255/300 Energy 89/100 System Corruption 45% Temperature Cool (0) Movement Core (150) Ox2 Location -6/Factory Parts ------- > --- POWER (1) -------- (None) > --- PROPULSION (3) --- (None) > --- UTILITY (7) ------ Advanced Heat Sink Advanced Terrain Scan Processor Launcher Guidance Computer > --- WEAPON (4) ------- Minigun Minigun > --- INVENTORY (5) ---- Enhanced Optical Array Advanced Sensor Array Advanced Sensor Array Advanced Terrain Scan Processor Advanced ECM Suite Peak State ------------ > --- POWER ------------ Improved Deuterium Engine > --- PROPULSION ------- Flexi-carbon Leg Armored Leg Improved VSS Leg > --- UTILITY ---------- Improved Cooling System Large Storage Unit Advanced Terrain Scan Processor Targeting Computer Launcher Guidance Computer Improved Medium Armor Plating Layered Medium Armor Plating > --- WEAPON ----------- Plasma Cannon Gauss Rifle Coil Gun Katana > --- INVENTORY -------- Heavy Deuterium Engine Heavy Deuterium Engine Flexi-carbon Leg Improved VSS Leg Improved VSS Leg Advanced Heat Sink Enhanced Optical Array Advanced Sensor Array Advanced Sensor Array Advanced Terrain Scan Processor Advanced ECM Suite Improved Medium Armor Plating Improved Medium Armor Plating Plasma Cannon [Rating: 64] Favorites ----------- Power Improved Ion Engine Engine Improved Ion Engine Propulsion Light Treads Treads Light Treads Leg Titanium Leg Utility Medium Storage Unit Device Improved Terrain Scanner Storage Medium Storage Unit Processor Advanced Terrain Scan Processor Hackware Hacking Suite Protection Improved Light Armor Plating Weapon Light Cannon Energy Gun Medium Laser Energy Cannon Plasma Cannon Ballistic Gun Heavy Assault Rifle Ballistic Cannon Light Cannon Launcher Shock Bomb Launcher Impact Weapon Maul Slashing Weapon Katana Build | -11 -10 -9 -9 -8 -7 -6 ------- Run | Yrd Mat Mat Sto Mat Fac Fac Slots Evolved 8 | . . 2 . 2 2 2 Power . | . . . . . . . Propulsion 1 | . . . . . 1 . Utility 5 | . . 2 . 1 1 1 Weapon 2 | . . . . 1 . 1 Parts Attached 136 | 8 8 13 23 36 9 39 Power 12 | 1 . 2 1 3 1 4 Engine 12 | 1 . 2 1 3 1 4 Core . | . . . . . . . Reactor . | . . . . . . . Propulsion 36 | 2 1 3 8 8 3 11 Treads 16 | 2 1 3 7 3 . . Leg 20 | . . . 1 5 3 11 Wheel . | . . . . . . . Hover . | . . . . . . . Flight . | . . . . . . . Utility 42 | 2 3 5 5 13 4 10 Device 16 | 1 2 . 4 4 2 3 Storage 5 | 1 1 1 . 2 . . Processor 6 | . . 1 . 3 1 1 Hackware 1 | . . . . 1 . . Protection 14 | . . 3 1 3 1 6 Artifact . | . . . . . . . Weapon 46 | 3 4 3 9 12 1 14 Energy Gun 3 | 2 . . . . . 1 Energy Cannon 6 | . . . . . . 6 Ballistic Gun 11 | 1 2 1 3 . . 4 Ballistic Cannon 7 | . 1 1 2 2 1 . Launcher 16 | . 1 1 3 8 . 3 Special Weapon . | . . . . . . . Impact Weapon 2 | . . . 1 1 . . Slashing Weapon 1 | . . . . 1 . . Piercing Weapon . | . . . . . . . Special Melee Weapon . | . . . . . . . Unidentified Prototypes 3 | . . . 1 2 . . Corrupted Parts 6 | . . . . . . 6 System Corruption 41 | . . . . . . 41 Parts Lost 41 | . . . . 7 2 32 Power 4 | . . . . . . 4 Propulsion 8 | . . . . . . 8 Utility 15 | . . . . 6 1 8 Weapon 14 | . . . . 1 1 12 Highest Loss Streak 15 | . . . . 4 1 15 To Critical Strikes . | . . . . . . . Average Slot Usage (%) 95 | . 100 99 98 91 96 92 Engine 9 | . 14 11 11 9 7 5 Treads 11 | . 28 22 20 8 . . Leg 8 | . . . . 9 23 18 Device 12 | . 14 11 15 12 9 9 Storage 9 | . 14 11 11 9 7 5 Processor 10 | . . 11 11 9 7 18 Hackware 1 | . . . . 4 . . Protection 6 | . . 10 6 3 17 8 Ballistic Gun 4 | . 19 2 9 . . 2 Ballistic Cannon 5 | . 1 8 5 9 7 3 Launcher 7 | . 2 11 5 9 6 6 Impact Weapon 1 | . . . . 5 . . Slashing Weapon 2 | . . . . 3 7 5 Peak Build Rating 64 | 9 10 18 23 37 43 64 Average Rating 28 | 6 9 15 18 28 40 52 On Entrance 18 | . 9 10 18 20 37 36 Naked Turns . | . . . . . . . Heaviest Build 74 | 12 20 28 33 50 55 74 Greatest Support 56 | 40 40 43 43 40 54 56 Greatest Overweight (x) 14 | . . 9 1 2 1 14 Average Overweight (x) . | . . . . . . 1 Largest Inventory Capacity 15 | 8 10 10 10 15 15 15 Average Capacity 11 | 7 9 10 10 11 15 14 Most Carried 15 | 4 10 10 10 15 15 15 Average Carried 10 | 1 8 9 9 9 12 13 Final Capacity 15 | 8 10 10 10 15 15 5 Final Carried 15 | 2 10 10 10 12 15 5 Class Distribution -------------------- 44% | Scavenger-Mutant 38% | Mutant 9% | Gunner 5% | Scavenger-Gunner Dominant Class ---------------- Mutant | -10/Materials Scavenger-Mutant | -9/Materials Scavenger-Mutant | -9/Storage Mutant | -8/Materials Mutant | -7/Factory Gunner | -6/Factory Resources | -11 -10 -9 -9 -8 -7 -6 ----------- Run | Yrd Mat Mat Sto Mat Fac Fac Matter Collected 4525 | 290 286 583 644 1230 344 1148 Remotely . | . . . . . . . Salvage Created 6948 | 163 480 1059 866 1451 597 2332 Parts 398 | 14 40 62 52 98 32 100 Haulers Intercepted 13 | . 2 4 2 4 . 1 Recyclers Shooed 11 | . 3 1 1 1 1 4 Parts Field Recycled . | . . . . . . . Retrieved Matter . | . . . . . . . Parts Self-Destructed . | . . . . . . . Prevented . | . . . . . . . Kills | -11 -10 -9 -9 -8 -7 -6 ------- Run | Yrd Mat Mat Sto Mat Fac Fac Combat Hostiles Destroyed 127 | . 8 18 15 44 12 30 Melee 7 | . . . . 1 5 1 Guns 24 | . 8 . 9 . . 7 Cannons 52 | . . 10 5 17 2 18 AOE 41 | . . 8 1 24 5 3 Classes Destroyed 15 | 2 7 2 . 1 2 1 Worker 24 | . 1 5 1 7 . 10 Builder 15 | . 2 3 1 4 1 4 Tunneler 4 | 3 . . . 1 . . Hauler 13 | . 2 4 2 4 . 1 Recycler 9 | 1 1 1 . 2 1 3 Mechanic 1 | . . . . . 1 . Operator 5 | . 1 . 1 2 . 1 Watcher 7 | . 1 1 1 3 . 1 Swarmer 23 | . 3 . . 17 . 3 Grunt 75 | . 5 13 8 21 9 19 Brawler 3 | . . 1 . . 1 1 Duelist 1 | . . . . 1 . . Sentry 17 | . . 4 7 5 1 . Hunter 4 | . . . . . 1 3 Programmer 4 | . . . . . . 4 Best Kill Streak 14 | 2 6 6 3 8 5 14 Combat Bots Only 7 | . 3 4 2 7 4 5 Max Kills in Single Turn 5 | 1 1 3 1 3 3 5 Gunslinging . | . . . . . . . Exploded 3 | . . 2 1 3 2 2 Melee 1 | . . . . 1 1 1 Uniques/NPCs Destroyed . | . . . . . . . Combat | -11 -10 -9 -9 -8 -7 -6 -------- Run | Yrd Mat Mat Sto Mat Fac Fac Hostile Shots Fired 951 | . 42 62 52 190 143 462 Missed 306 | . 11 20 14 73 50 138 Damage Taken 9986 | . 341 719 520 1743 890 5773 Core 1396 | . 94 87 57 204 104 850 Absorbed by Shields 385 | . . . . 162 223 . Regen/Repaired (Parts) 254 | . . 58 119 77 . . Core Remaining (%) 74 | 100 62 . 64 62 85 . Volleys Fired 579 | 12 52 89 71 186 21 148 Largest 3 | 2 2 2 2 2 2 3 Hottest 229 | 90 70 71 71 74 74 229 Shots Fired 901 | 24 103 108 103 217 33 313 Gun 333 | 24 102 4 63 . . 140 Cannon 473 | . . 84 36 172 21 160 Launcher 95 | . 1 20 4 45 12 13 Special . | . . . . . . . Kinetic 629 | 10 80 88 99 172 21 159 Thermal 177 | 14 22 . . . . 141 Explosive 38 | . 1 1 . 19 12 5 Electromagnetic 57 | . . 19 4 26 . 8 Robot Hit Streak 16 | 5 8 11 16 11 7 9 Robot Miss Streak 5 | 3 3 4 4 4 5 4 Penetration Max 1 | . . . . . . 1 Secondary Targets 1 | . . . 1 . . . Max Gunslinging Chain 1 | . . . 1 . . . Shots Hit Robots 584 | 11 65 64 68 140 35 201 Core Hits 328 | 7 26 38 29 98 23 107 Critical Kills 1 | . . . 1 . . . Critical Parts Destroyed 7 | . . . . 4 . 3 Critical Strikes 30 | 1 5 1 2 12 3 6 Burn 7 | 1 5 . . . . 1 Destroy 4 | . . . 1 . . 3 Blast 13 | . . 1 1 8 1 2 Smash 4 | . . . . 4 . . Sever 2 | . . . . . 2 . Melee Attacks 59 | . . . 2 21 25 11 Impact 10 | . . . 2 8 . . Slashing 49 | . . . . 13 25 11 Piercing . | . . . . . . . Sneak Attacks 12 | . . . . 7 2 3 Combat Hostiles . | . . . . . . . Follow-up Attacks . | . . . . . . . Damage Inflicted 17370 | 113 761 1940 1128 5646 1451 6331 Guns 3580 | 113 761 28 622 . . 2056 Cannons 6279 | . . 1092 423 1950 241 2573 Explosions 5805 | . . 820 83 3011 589 1302 Melee 1675 | . . . . 685 621 369 Ramming 31 | . . . . . . 31 Kinetic 7226 | 28 561 1120 1045 1950 241 2281 Thermal 2756 | 85 200 34 . 89 . 2348 Explosive 3282 | . . 228 . 2105 589 360 Electromagnetic 2400 | . . 558 83 817 . 942 Impact 294 | . . . . 294 . . Slashing 1381 | . . . . 391 621 369 Piercing . | . . . . . . . Highest Corruption 45 | . . 1 3 4 . 45 Average Corruption 2 | . . 1 2 3 . 4 Corruption Purged . | . . . . . . . Corruption Blocked . | . . . . . . . Effects 68 | . . 3 22 24 . 19 Message Errors 15 | . . 1 4 4 . 6 Matter Fused 18 | . . 1 8 3 . 6 Heat Flow Errors 9 | . . . 5 3 . 1 Energy Discharges 9 | . . . 1 5 . 3 Data Loss (minor) 9 | . . 1 1 5 . 2 Data Loss (major) 2 | . . . 1 1 . . Misfires 2 | . . . . 2 . . Alerts 1 | . . . . 1 . . Weapon Failures 3 | . . . 2 . . 1 Overload Shots . | . . . . . . . Overflow Damage 614 | . . 12 5 420 33 144 Projectiles 85 | . . 12 5 23 . 45 Explosions 177 | . . . . 118 33 26 Melee 352 | . . . . 279 . 73 Knockbacks 37 | . . . . 25 1 11 Impact 3 | . . . . 2 . 1 Kinetic 33 | . . . . 23 1 9 Secondary 1 | . . . . . . 1 Self-Inflicted Damage 512 | . . 149 8 125 178 52 Shots 23 | . . 6 1 6 5 5 Rammed . | . . . . . . . Targets Rammed 8 | . . . . . . 8 Kicked 8 | . . . . . . 8 Crushed . | . . . . . . . Highest Temperature 805 | 100 292 114 276 269 147 805 Average Temperature 93 | 43 165 26 75 36 53 145 Received Heat Transfer 2857 | . 162 261 246 692 299 1197 Effects 21 | . . . . . . 21 Shutdowns 4 | . . . . . . 4 Energy Bleed 2 | . . . . . . 2 Interference 10 | . . . . . . 10 Matter Decay 2 | . . . . . . 2 Short Circuit 2 | . . . . . . 2 Damage (minor) 1 | . . . . . . 1 Siege Activations . | . . . . . . . Robots Corrupted 5 | . . . . 4 . 1 Combat Hostiles 3 | . . . . 2 . 1 Parts Fried 10 | . . . 1 8 . 1 Impact Corruptions 8 | . . . . 8 . . Robots Melted . | . . . . . . . Combat Hostiles . | . . . . . . . Parts Melted 6 | 1 2 . . . . 3 Heat Transferred 5910 | 321 962 50 . 100 . 4477 Parts Sabotaged . | . . . . . . . Parts Stolen . | . . . . . . . Parts Stripped . | . . . . . . . Power Chain Reactions 7 | . . 2 . 3 . 2 Alert | -11 -10 -9 -9 -8 -7 -6 ------- Run | Yrd Mat Mat Sto Mat Fac Fac Peak Influence 1203 | 20 147 350 280 1203 803 1096 Initial 516 | . 13 . 137 90 516 329 Average 396 | 11 87 192 119 683 698 460 Maximum Alert Level 4 | . . 1 1 4 3 3 Low Security (%) 39 | 100 100 51 76 21 . 7 Level 1 26 | . . 48 23 12 . 61 Level 2 10 | . . . . 19 44 6 Level 3 11 | . . . . 4 55 24 Level 4 10 | . . . . 42 . . Level 5 . | . . . . . . . High Security . | . . . . . . . Max Security . | . . . . . . . Squads Dispatched 35 | . 2 3 6 8 4 12 Investigation 10 | . 1 2 2 1 1 3 Extermination 4 | . . . . . 1 3 Reinforcement 16 | . 1 1 3 5 . 6 Assault 4 | . . . . 2 2 . Garrison 1 | . . . 1 . . . Intercept . | . . . . . . . Searches Triggered . | . . . . . . . Construction Impeded 4 | . . . . 1 . 3 Haulers Reinforced 3 | . . . . . . 3 Active Scanning Responses . | . . . . . . . Cargo Convoy Interrupts . | . . . . . . . Stealth | -11 -10 -9 -9 -8 -7 -6 --------- Run | Yrd Mat Mat Sto Mat Fac Fac Distress Signals 9 | . . 1 4 3 . 1 Communications Jammed . | . . . . . . . Distress Signals . | . . . . . . . Times Spotted 195 | . 12 24 31 65 15 48 Peak Tracking Total 5 | . 3 4 4 5 4 5 Tactical Retreats 11 | . 1 . . 2 1 7 Traps | -11 -10 -9 -9 -8 -7 -6 ------- Run | Yrd Mat Mat Sto Mat Fac Fac Traps Triggered 3 | . . 1 1 . . 1 Indirectly 1 | . . . . . . 1 Trap Hack Attempts . | . . . . . . . Triggered . | . . . . . . . Disarmed . | . . . . . . . Reprogrammed . | . . . . . . . Reused . | . . . . . . . Traps Extracted . | . . . . . . . Installed . | . . . . . . . Triggered . | . . . . . . . Machines | -11 -10 -9 -9 -8 -7 -6 ---------- Run | Yrd Mat Mat Sto Mat Fac Fac Machines Disabled 50 | . . 2 4 10 3 31 Max in Single Turn 9 | . . 2 1 2 2 9 Garrison Access 1 | . . . 1 . . . Machines Repaired . | . . . . . . . Machines Dismantled . | . . . . . . . Machines Sabotaged . | . . . . . . . Overloaded Fab Kills . | . . . . . . . Hacking | -11 -10 -9 -9 -8 -7 -6 --------- Run | Yrd Mat Mat Sto Mat Fac Fac Machines Accessed 30 | . 3 3 12 3 4 5 Terminals 21 | . 3 1 9 2 4 2 Fabricators . | . . . . . . . Repair Stations 5 | . . 1 2 1 . 1 Recycling Units . | . . . . . . . Scanalyzers 3 | . . 1 . . . 2 Garrison Access 1 | . . . 1 . . . Total Hacks 76 | . 7 9 23 15 8 14 Successful 43 | . 3 8 15 10 2 5 Failed 33 | . 4 1 8 5 6 9 Catastrophic 3 | . . . 2 . 1 . Database Lockouts . | . . . . . . . Manual 11 | . . . 5 2 3 1 Terminals 46 | . 7 1 15 10 8 5 Fabricators . | . . . . . . . Repair Stations 19 | . . 3 7 5 . 4 Recycling Units . | . . . . . . . Scanalyzers 10 | . . 5 . . . 5 Garrison Access 1 | . . . 1 . . . Terminal Hacks 22 | . 3 1 8 7 2 1 Record 1 | . . 1 . . . . Open Door 4 | . . . 4 . . . Open DSF 2 | . . . . . 1 1 Alert Level 2 | . . . . 2 . . Unreport Threat 2 | . 1 . 1 . . . Locate Traps 3 | . 1 . 1 1 . . Dispatch Records 1 | . . . 1 . . . Assault Status 1 | . . . . 1 . . Recall Investigation 1 | . . . . 1 . . Hauler Manifests 1 | . . . . 1 . . Zone Layout 4 | . 1 . 1 1 1 . Fabricator Hacks . | . . . . . . . Repair Station Hacks 13 | . . 3 6 3 . 1 Scan Component 9 | . . 2 4 2 . 1 Repair 4 | . . 1 2 1 . . Recycling Unit Hacks . | . . . . . . . Scanalyzer 7 | . . 4 . . . 3 Insert Component 4 | . . 2 . . . 2 Analyze 3 | . . 2 . . . 1 Garrison Access Hacks 1 | . . . 1 . . . Seal Access 1 | . . . 1 . . . Unauthorized Hacks . | . . . . . . . Terminals . | . . . . . . . Fabricators . | . . . . . . . Repair Stations . | . . . . . . . Recycling Units . | . . . . . . . Scanalyzers . | . . . . . . . Garrison Access . | . . . . . . . Data Cores Recovered . | . . . . . . . Used . | . . . . . . . Hacking Detections 18 | . 2 2 5 2 3 4 Full Trace Events 12 | . 1 1 4 2 1 3 Feedback Events 1 | . . . . 1 . . Corruption 1 | . . . . 1 . . Feedback Blocked . | . . . . . . . Robot Schematics Acquired . | . . . . . . . Robots Built . | . . . . . . . Authchips . | . . . . . . . Time . | . . . . . . . Total Robot Build Rating . | . . . . . . . Part Schematics Acquired 2 | . . 1 . . . 1 Parts Built . | . . . . . . . Authchips . | . . . . . . . Time . | . . . . . . . Total Part Build Rating . | . . . . . . . Parts Repaired 4 | . . 1 2 1 . . Time 126 | . . 26 74 26 . . Parts Recycled . | . . . . . . . Recycled Matter . | . . . . . . . Retrieved Matter . | . . . . . . . Retrieved Components . | . . . . . . . Parts Scanalyzed 3 | . . 2 . . . 1 Part Schematics Acquired 2 | . . 1 . . . 1 Parts Damaged . | . . . . . . . Bothacking | -11 -10 -9 -9 -8 -7 -6 ------------ Run | Yrd Mat Mat Sto Mat Fac Fac Used RIF Installer . | . . . . . . . Robots Hacked . | . . . . . . . Non-combat . | . . . . . . . Combat . | . . . . . . . Robot Hacks Applied . | . . . . . . . Relay Couplers Released . | . . . . . . . Fabnet Peak Effective % . | . . . . . . . Robots Rewired . | . . . . . . . Allies Hacked . | . . . . . . . Hacks Repelled . | . . . . . . . Allies | -11 -10 -9 -9 -8 -7 -6 -------- Run | Yrd Mat Mat Sto Mat Fac Fac Total Allies 10 | . . . 10 . . . Largest Group 10 | . . . 10 . . . Highest-Rated Group 88 | . . . 88 . . . Highest-Rated Ally 16 | . . . 16 . . . Total Orders 15 | . . . 15 . . . EXPLORE 11 | . . . 11 . . . RETURN 4 | . . . 4 . . . Ally Attacks 93 | . . . 93 . . . Total Damage 903 | . . . 903 . . . Kills 9 | . . . 9 . . . Allies Corrupted . | . . . . . . . Allies Melted . | . . . . . . . Intel | -11 -10 -9 -9 -8 -7 -6 ------- Run | Yrd Mat Mat Sto Mat Fac Fac Robot Analysis Total . | . . . . . . . Derelict Logs Recovered . | . . . . . . . Drone Launches 10 | . . . 10 . . . Drone Recoveries 5 | . . . 5 . . . Exploration | -11 -10 -9 -9 -8 -7 -6 ------------- Run | Yrd Mat Mat Sto Mat Fac Fac Turns Passed 9523 | 180 826 1043 2072 2455 921 2026 Spaces Moved 3905 | 80 395 468 854 945 464 699 Core 17 | 4 . 7 . . . 6 Treads 2151 | 76 395 461 854 365 . . Legs 1737 | . . . . 580 464 693 Wheels . | . . . . . . . Hover . | . . . . . . . Flight . | . . . . . . . Fastest Speed 50 | 50 160 160 160 125 126 110 Average Speed 172 | 154 160 165 168 181 154 193 Slowest Speed 750 | 160 160 500 240 270 196 750 Overloaded Moves . | . . . . . . . Propulsion Burnouts . | . . . . . . . Robots Hopped . | . . . . . . . Cave-ins Triggered . | . . . . . . . Exploration Rate (%) 38 | 5 63 37 97 41 10 17 Regions Visited 6 Branch Regions 1 Pre-discovered Areas . | . . . . . . . Known Exits Taken . | . . . . . . . Unknown Exits Taken 6 | 1 1 1 1 1 1 . Scrap Searched . | . . . . . . . Spaces Dug 32 | . 6 . 1 22 2 1 Terrain Destroyed 579 | . 6 50 1 300 136 86 Melee 8 | . . . 1 4 2 1 Projectile 4 | . . . . 2 . 2 AOE 565 | . 6 50 . 294 134 81 Terrain Rammed . | . . . . . . . Walls Destroyed . | . . . . . . . Machines Disabled . | . . . . . . . Actions | -11 -10 -9 -9 -8 -7 -6 --------- Run | Yrd Mat Mat Sto Mat Fac Fac Total 5750 | 115 493 631 1382 1435 600 1094 Wait 862 | 5 14 42 399 199 66 137 Move 3899 | 79 394 467 853 944 463 699 Hop . | . . . . . . . Pick Up 112 | 10 15 10 11 27 10 29 Fast Attach 21 | . 2 2 6 5 1 5 Attach 58 | 7 2 3 2 15 3 26 Detach 1 | . . . . 1 . . Swap 57 | 1 4 8 15 16 5 8 Drop 94 | 1 10 10 23 21 6 23 Fire 579 | 12 52 89 71 186 21 148 Melee 59 | . . . 2 21 25 11 Ram . | . . . . . . . Kick 8 | . . . . . . 8 Crush . | . . . . . . . Escape Stasis . | . . . . . . . Rewire . | . . . . . . . Trap . | . . . . . . . Miscellaneous . | . . . . . . . Route ------- -11/Scrapyard -10/Materials (discovered 3 exits: *Mat / [*Min x2]) -9/Materials (discovered 3 exits: *Mat / [Min] / *Sto) -9/Storage (discovered 2 exits: *Mat / [Rec]) -8/Materials (discovered 2 exits: *Fac x2) -7/Factory -6/Factory History --------- Turn | Location | Event 33 | -11/Scrapyard | Discovered new exit (range 15) 181 | -11/Scrapyard | Entered Materials 315 | -10/Materials | Build established: Mutant 337 | -10/Materials | Discovered new exit (range 10) 692 | -10/Materials | Discovered new exit (range 11) 848 | -10/Materials | Discovered new exit (range 4) 1007 | -10/Materials | Entered another Materials area 1007 | -9/Materials | Evolved 2 slots: Utility x2 1010 | -9/Materials | Discovered new exit (range 8) 1294 | -9/Materials | Build established: Scavenger-Mutant 1443 | -9/Materials | Repaired Lgt. Armor Plating 1662 | -9/Materials | Discovered new exit (range 13) 1863 | -9/Materials | Discovered new exit (range 11) 2050 | -9/Materials | Entered Storage 2679 | -9/Storage | Discovered new exit (range 62) 2921 | -9/Storage | Repaired Shock Bomb Launcher 3264 | -9/Storage | Assisted by bots powering up and referring to "LRC-V3" 3314 | -9/Storage | Garrison activated, responded to threat 3373 | -9/Storage | Lost 6 allies 3517 | -9/Storage | Repaired Broken Lgt. Treads? 3795 | -9/Storage | Discovered new exit (range 10) 3806 | -9/Storage | Lost 4 allies 4122 | -9/Storage | Entered Materials 4122 | -8/Materials | Evolved 2 slots: Utility x1, Weapon x1 4453 | -8/Materials | Repaired Lgt. Treads 4778 | -8/Materials | Discovered new exit (range 13) 5472 | -8/Materials | Discovered new exit (range 16) 5489 | -8/Materials | Destroyed 7 combat bots 5503 | -8/Materials | Build established: Mutant 5722 | -8/Materials | First assault squad dispatched 5832 | -8/Materials | Lost 4 parts (3u1w) 6577 | -8/Materials | Entered Factory 6577 | -7/Factory | Evolved 2 slots: Propulsion x1, Utility x1 6977 | -7/Factory | First assault squad dispatched 7154 | -7/Factory | Discovered new exit (range 14) 7498 | -7/Factory | Entered another Factory area 7498 | -6/Factory | Evolved 2 slots: Utility x1, Weapon x1 7795 | -6/Factory | Build established: Scavenger-Gunner 8575 | -6/Factory | Lost 4 parts (1u3w) 8952 | -6/Factory | Build established: Gunner 9182 | -6/Factory | Lost 3 parts (1n1u1w) 9385 | -6/Factory | Lost 6 parts (1n3u2w) 9410 | -6/Factory | Core integrity fell below 50% 9479 | -6/Factory | System corruption reached 10% 9486 | -6/Factory | Core integrity fell below 20% 9518 | -6/Factory | System corruption reached 30% 9524 | -6/Factory | Destroyed by H-66 Slayer with Gauss Rifle Last Messages --------------- Phase Cannon destroyed. JAGH3Q1AJVRBEZJ1QU>PKHZBOUXT C3U0U K-01 Serf collects debris. Penetrated by Slug. Slug penetrates Wall. R-10 Processor collects Hvy. Assault Rifle. Penetrated by Slug. K-01 Serf collects debris. Penetrated by Slug. Dropped Lrg. Storage Unit. K-01 Serf collects debris. R-10 Processor collects Targeting Computer. Acquired Corrupted Minigun. Integrated Corrupted Minigun (+8). Phase Cannon destroyed. Acquired Corrupted Minigun. Integrated Corrupted Minigun (+10). Phase Cannon destroyed. ZTUWP,Y0O5ELK